[Event "Grand Prix Romania 1st Stage 2024"]
[Site "Bucuresti"]
[Date "2024.03.23"]
[Round "3.9"]
[White "Coicev, Matei-Andrei"]
[Black "Kuzubov, Yuriy"]
[Result "0-1"]
[ECO "B10"]
[WhiteElo "2153"]
[BlackElo "2605"]
[Annotator "TA"]
[PlyCount "92"]
[EventDate "2024.03.20"]
[EventType "swiss"]
[EventCountry "ROU"]
[SourceTitle "playchess.com"]
[Source "ChessBase"]
[SourceQuality "1"]
[TimeControl "900+5"]

{[%evp 9,92,0,0,-9,-11,-36,-27,-35,-22,-26,0,-37,-28,-37,-18,-42,-54,-91,-88,-80,-85,-85,0,-45,-25,-134,-50,-77,-56,-50,-50,-131,-32,-35,-52,-34,-43,-56,-37,-146,-166,-203,-7,-20,-20,-20,-22,-40,-29,-25,0,0,0,0,221,-18,0,-129,-142,-122,-146,-147,-121,-281,-216,-196,-61,-596,-606,-839,-825,-883,-835,-761,-676,-739,-749,-1789,-1272,-2452,-2237,-29985,-29986,-29983,-456]} 1. e4 {[%emt 0:00:02]} c6 {[%emt 0:00:02]} 2. Nf3 {[%emt 0:00:02]} d5 {[%emt 0:00:02]} 3. exd5 {[%emt 0:00:02]} cxd5 {[%emt 0:00:04]} 4. Ne5 {[%emt 0:00:02]} e6 {[%emt 0:01:37]} 5. d4 {[%emt 0:00:07]} Bd6 {[%emt 0:00:47]} 6. c3 {[%emt 0:01:08]} Nc6 {[%emt 0:00:22]} 7. Nxc6 {[%emt 0:01:04]} bxc6 {[%emt 0:00:03]} 8. Bd3 {[%emt 0:00:08] Black has an edge.} Ne7 {[%emt 0:00:14]} 9. O-O {[%emt 0:00:14]} Qc7 {[%emt 0:00:44]} 10. h3 {[%emt 0:00:08]} O-O {[%emt 0:00:10]} 11. Nd2 {[%emt 0:00:23]} f6 {[%emt 0:02:40]} 12. Nb3 {[%emt 0:01:30]} e5 {[%emt 0:01:06]} 13. c4 {[%emt 0:00:47]} e4 {[%emt 0:00:27]} 14. Be2 {[%emt 0:00:06]} Qd8 {[%emt 0:03:04]} 15. cxd5 {[%emt 0:01:25]} Nxd5 {[%emt 0:01:08]} ({Better is} 15... cxd5 $17 16. Nc5 Bc7) 16. f3 {[%emt 0:02:36]} Bf5 {[%emt 0:01:00]} 17. Nd2 {[%emt 0:01:06]} (17. Nc5 $11 Qe7 18. Nxe4) 17... exf3 {[%emt 0:00:27]} (17... e3 $17 18. Ne4 Bb8) 18. Bxf3 {[%emt 0:00:39]} Bg6 {[%emt 0:00:11] Black has more active pieces.} 19. Nc4 {[%emt 0:00:27]} Bb8 {[%emt 0:00:34] ...Qc7 would now be deadly.} 20. Ne3 {[%emt 0:00:56]} (20. b3 $1 $15) 20... Bf7 {[%emt 0:01:02]} ({Black should play} 20... Qd6 $17 21. Bxd5+ cxd5) 21. Nxd5 {[%emt 0:01:00]} cxd5 {[%emt 0:00:05]} 22. Bg4 {[%emt 0:00:43]} Qb6 {[%emt 0:00:34]} 23. Kh1 {[%emt 0:01:13]} Re8 {[%emt 0:00:09]} 24. b3 {[%emt 0:00:10]} (24. Qb3 $15) 24... Re4 $17 {[%emt 0:00:06]} 25. Qc2 {[%emt 0:00:23] [#] Repels Qc7} Bc7 $2 {[%emt 0:00:06]} (25... Qxd4 26. Bb2 Qe3 27. Qc8+ (27. Qc6 $2 Qg3 $19) 27... Re8 28. Rfe1) (25... Qd6 $1 $19 {[%csl Gb8][%cal Rd6h2]} 26. g3 Qxg3 (26... Rxd4 27. Bf5 $15)) 26. Bf5 {[%emt 0:00:17] [#]} Qd6 $1 {[%emt 0:00:08]} 27. g3 $1 {[%emt 0:00:11] [#]} Qxg3 $1 $40 {[%emt 0:00:11][%cal Oa8e8][%mdl 128] White must now prevent ...Rae8! White needs to defend precisely.} 28. Bxe4 {[%emt 0:00:20]} dxe4 {[%emt 0:00:06]} 29. Qg2 {[%emt 0:00:04]} Bd5 {[%emt 0:00:06]} 30. Qxg3 {[%emt 0:00:07]} Bxg3 {[%emt 0:00:02] A strong pair of Bishops.} 31. Be3 {[%emt 0:00:03]} f5 $2 {[%emt 0:00:08]} 32. Kg1 $2 {[%emt 0:00:08]} (32. Kg2 $18 f4 33. Bxf4) 32... Rf8 {[%emt 0:00:04]} 33. Bf4 {[%emt 0:00:05]} (33. Rac1 $11 {keeps the balance.}) 33... Bxf4 {[%emt 0:00:03]} 34. Rxf4 {[%emt 0:00:01][%mdl 4096] Endgame. KRR-KRB} g5 {[%emt 0:00:01]} 35. Rff1 {[%emt 0:00:05]} f4 {[%emt 0:00:02][%mdl 1024] Black has strong compensation.} 36. Kf2 $2 {[%emt 0:00:08]} (36. Rac1 $17 {is a better defense.}) 36... e3+ $19 {[%emt 0:00:01]} 37. Ke2 {[%emt 0:00:01]} Re8 {[%emt 0:00:09]} (37... Kg7 $19 {And now ...Re8 would win.} 38. Rfc1 h6 39. Rc7+ Kg6 40. Rxa7 Re8 41. Ra6+ Kf5) 38. Rae1 $2 {[%emt 0:00:12][%mdl 8192]} (38. h4 $1 $15) 38... Kf7 {[%emt 0:00:04]} 39. h4 {[%emt 0:00:01]} h6 {[%emt 0:00:01]} (39... gxh4 $2 {too greedy.} 40. Rxf4+ Ke6 41. Rxh4 $18 (41. Kxe3 Kd6+ 42. Kd2 Rxe1 $18)) 40. hxg5 {[%emt 0:00:02]} hxg5 {[%emt 0:00:01] ...Bg2 is the strong threat.} 41. Kd3 {[%emt 0:00:09]} Kg6 {[%emt 0:00:02]} 42. Rg1 {[%emt 0:00:11]} Kf5 {[%emt 0:00:06]} 43. Kc3 {[%emt 0:00:06]} f3 {[%emt 0:00:04]} 44. Kd3 {[%emt 0:00:04]} f2 {[%emt 0:00:07]} 45. Ref1 {[%emt 0:00:07]} g4 {[%emt 0:00:07]} 46. Ke2 {[%emt 0:00:05]} Bf3+ {[%emt 0:00:02] Weighted Error Value: White=0.94/Black=0.44.  Loses game:     	White=1     	Black=1      Missed win:     	White=1     	Black=1      Mistake:       	White=5     	Black=4      Inaccurate:     	White=5     	Black=1      OK:         	White=8     	Black=8      Best:        	White=4     	Black=3      Strong:       	White=1     	Black=2} 0-1

[Event "Grand Prix Romania 1st Stage 2024"]
[Site "Bucuresti"]
[Date "2024.03.23"]
[Round "3.10"]
[White "Brunello, Sabino"]
[Black "Doluhanova, Evgeniya"]
[Result "1-0"]
[ECO "A13"]
[WhiteElo "2515"]
[BlackElo "2261"]
[Annotator "TA"]
[PlyCount "67"]
[EventDate "2024.03.20"]
[EventType "swiss"]
[EventCountry "ROU"]
[SourceTitle "playchess.com"]
[Source "ChessBase"]
[SourceQuality "1"]
[TimeControl "900+5"]

{[%evp 9,67,8,10,2,10,0,0,1,0,0,6,2,7,0,0,0,0,4,41,46,48,49,56,56,50,54,49,49,114,111,122,125,118,120,129,121,118,118,189,188,194,197,197,192,218,231,226,231,215,229,240,217,215,218,225,207,522,530,513,499]} 1. c4 {[%emt 0:00:02]} Nf6 {[%emt 0:00:02]} 2. g3 {[%emt 0:00:01]} e6 {[%emt 0:00:04]} 3. Bg2 {[%emt 0:00:01]} d5 {[%emt 0:00:02]} 4. Nf3 {[%emt 0:00:01]} dxc4 {[%emt 0:00:28]} 5. Qa4+ {[%emt 0:00:01]} Bd7 {[%emt 0:00:04]} 6. Qxc4 {[%emt 0:00:02]} c5 {[%emt 0:00:04]} 7. Ne5 {[%emt 0:00:03]} Qc8 {[%emt 0:00:11]} 8. b3 {[%emt 0:00:08] Die Stellung ist ausgeglichen.} Nc6 {[%emt 0:00:05][%cal Bb8c6,Bc6d4,Bd4c2][%mdl 32]} 9. Nxd7 {[%emt 0:00:01]} Qxd7 {[%emt 0:00:14]} 10. Bb2 {[%emt 0:00:01]} Be7 {[%emt 0:00:09]} 11. O-O {[%emt 0:00:08]} O-O {[%emt 0:00:05]} 12. Rd1 {[%emt 0:00:11]} Rac8 {[%emt 0:00:11]} 13. Nc3 {[%emt 0:00:05]} Nd4 {[%emt 0:01:24]} 14. e3 {[%emt 0:00:03]} Nc2 {[%emt 0:01:14]} 15. Rac1 {[%emt 0:00:06]} Nb4 {[%emt 0:00:02]} 16. d4 {[%emt 0:02:00]} cxd4 {[%emt 0:01:14]} 17. Qxd4 {[%emt 0:00:02]} Qxd4 {[%emt 0:00:36]} 18. Rxd4 {[%emt 0:00:02]} b6 {[%emt 0:00:28] Weiß überlässt nun nichts mehr dem Zufall.} ({Besser ist} 18... Rfd8 $14 19. Rxd8+ (19. Bxb7 Rxd4 20. Bxc8 Rd2 $11) 19... Rxd8) 19. a3 $16 {[%emt 0:00:52]} Nc6 {[%emt 0:00:13]} 20. Rc4 {[%emt 0:00:07][%cal Bd4c4,Bc4c3,Bc3d3,Bd3d7][%mdl 32]} Na5 {[%emt 0:00:11][%csl LRb3,LRc4] [#]} 21. Nd5 $1 {[%emt 0:00:06][%mdl 512]} Rce8 {[%emt 0:02:09]} 22. Nxe7+ {[%emt 0:00:55]} Rxe7 {[%emt 0:00:03]} 23. R4c3 $36 {[%emt 0:00:19][%mdl 2048] Weiss hat starke Initiative.} b5 {[%emt 0:01:39]} (23... Nd5 $16 {ist eine bessere Verteidigung.}) 24. Rd3 $18 {[%emt 0:01:46]} Rd7 {[%emt 0:01:18] Schwarz hat schwache schwarze Felder} 25. Rxd7 {[%emt 0:00:17]} Nxd7 {[%emt 0:00:02][%cal Bf6d7,Bd7c5,Bc5e4][%mdl 32]} 26. Rc7 {[%emt 0:00:05][%csl LRa7,LRd7]} Rd8 {[%emt 0:01:37]} 27. Rxa7 {[%emt 0:02:11]} Nxb3 {[%emt 0:00:05]} 28. Bc6 {[%emt 0:00:02][%csl LRb5,LRd7]} Ndc5 {[%emt 0:01:07]} 29. Bxb5 {[%emt 0:00:02]} h5 {[%emt 0:00:13]} 30. Bc3 {[%emt 0:00:16]} Ne4 {[%emt 0:00:24]} 31. Bb4 {[%emt 0:00:02]} g5 {[%emt 0:01:25]} 32. Bc6 {[%emt 0:00:54] Ein starkes Läuferpaar.} Nbd2 {[%emt 0:00:16] [#]} (32... Nec5 {ist eine bessere Chance.} 33. Ra8 Rxa8 34. Bxa8 f5) 33. Ra8 {[%emt 0:00:16]} Rxa8 {[%emt 0:00:14]} 34. Bxa8 {[%emt 0:00:01] Gewichteter Fehlerwert: Weiß=0.02 (makellos) /Schwarz=0.22 (präzise) .  Fehler:       	---       	Schwarz=3     Ungenau:       	---       	Schwarz=1     OK:         	Weiß=16    	Schwarz=13    Bester:       	Weiß=2     	Schwarz=1     Brilliant:      	Weiß=1     	---} 1-0

[Event "Grand Prix Romania 1st Stage 2024"]
[Site "Bucuresti"]
[Date "2024.03.23"]
[Round "3.11"]
[White "Miroiu, George-Catalin"]
[Black "Sargsyan, Shant"]
[Result "0-1"]
[ECO "E61"]
[WhiteElo "2294"]
[BlackElo "2637"]
[Annotator "TA"]
[PlyCount "84"]
[EventDate "2024.03.20"]
[EventType "swiss"]
[EventCountry "ROU"]
[SourceTitle "playchess.com"]
[Source "ChessBase"]
[SourceQuality "1"]
[TimeControl "900+5"]

{[%evp 9,84,36,66,26,15,12,21,10,3,0,11,9,2,-8,0,0,0,-25,-29,-39,-39,-38,-37,-33,-32,-25,-36,-34,-34,-33,-7,-29,-25,-25,-14,-11,-15,-77,-80,-79,-87,-79,-83,-82,-66,-110,-114,-228,-217,-241,-218,-269,-292,-272,-218,-272,-269,-274,-283,-274,-262,-422,-283,-294,-303,-329,-328,-326,-318,-315,-318,-316,-317,-29979,-159,-29980,-29981]} 1. d4 {[%emt 0:00:01]} Nf6 {[%emt 0:00:03]} 2. Nf3 {[%emt 0:00:06]} g6 {[%emt 0:00:02]} 3. c4 {[%emt 0:00:02]} d6 {[%emt 0:00:11]} 4. Nc3 {[%emt 0:00:05]} Bf5 {[%emt 0:00:02]} 5. Qb3 {[%emt 0:01:47]} Qc8 {[%emt 0:00:09]} 6. Bg5 {[%emt 0:00:09]} Bg7 {[%emt 0:00:27]} 7. e3 {[%emt 0:02:45]} h6 {[%emt 0:00:58]} 8. Bh4 {[%emt 0:00:12] The position is equal.} g5 {[%emt 0:00:17]} 9. Bg3 {[%emt 0:00:02]} Nh5 {[%emt 0:00:04]} 10. Rd1 {[%emt 0:02:24]} O-O {[%emt 0:03:14]} 11. Be2 {[%emt 0:01:28]} Nxg3 {[%emt 0:01:06]} 12. hxg3 {[%emt 0:00:03]} c5 {[%emt 0:00:02]} 13. dxc5 {[%emt 0:02:07]} dxc5 {[%emt 0:00:32]} 14. Bd3 {[%emt 0:01:10]} Bxd3 {[%emt 0:01:14]} 15. Rxd3 {[%emt 0:00:02]} Nc6 {[%emt 0:00:01]} 16. O-O {[%emt 0:00:47]} b6 {[%emt 0:00:47]} 17. Rfd1 {[%emt 0:00:49]} Qe6 {[%emt 0:00:48]} 18. Nd5 {[%emt 0:00:34]} Rac8 {[%emt 0:00:13] Repels Nc7} 19. Qc2 {[%emt 0:00:36]} Qg4 {[%emt 0:00:28]} 20. Nh2 {[%emt 0:00:22]} Qe4 {[%emt 0:00:38]} 21. b3 {[%emt 0:00:10]} e6 {[%emt 0:00:24]} 22. Nc3 {[%emt 0:00:02]} Qg6 {[%emt 0:00:35]} 23. a3 {[%emt 0:00:18] Dodges Nb4} (23. Qc1 $11 {remains equal.}) 23... Ne5 $17 {[%emt 0:01:12] Black continues to play with concentration.} 24. R3d2 {[%emt 0:00:12]} Qxc2 {[%emt 0:00:02]} 25. Rxc2 Rfd8 26. Kf1 {[%emt 0:00:42]} Nc6 {[%emt 0:00:13]} 27. Rxd8+ {[%emt 0:00:03]} Rxd8 {[%emt 0:00:02]} 28. Ne4 {[%emt 0:00:20] [#]} (28. Ke2 $17 {is a better defense.}) 28... Rd1+ $1 $19 {[%emt 0:00:27]} 29. Ke2 {[%emt 0:00:00]} Ra1 {[%emt 0:00:02]} 30. a4 {[%emt 0:00:08]} f5 {[%emt 0:00:40]} 31. Nd6 {[%emt 0:00:07]} Rb1 {[%emt 0:00:34]} 32. Nf3 {[%emt 0:00:04]} Rxb3 {[%emt 0:00:12]} 33. Ra2 {[%emt 0:00:02]} Rb1 {[%emt 0:00:32]} 34. Nd2 {[%emt 0:00:03]} Rc1 {[%emt 0:00:16]} 35. Nc8 $2 {[%emt 0:00:05]} (35. a5 {keeps fighting.} Nxa5 (35... bxa5 36. Nb3 $17) 36. Nc8) 35... g4 {[%emt 0:00:38]} 36. a5 {[%emt 0:00:06]} bxa5 {[%emt 0:00:16] Hoping for ...Bc3.} 37. Nb3 {[%emt 0:00:04]} Rxc4 {[%emt 0:00:26] aiming for ...a4.} 38. Nxa5 {[%emt 0:00:05]} Nxa5 {[%emt 0:00:04]} 39. Rxa5 {[%emt 0:00:00]} Rc2+ {[%emt 0:00:02]} 40. Kf1 {[%emt 0:00:02]} c4 {[%emt 0:00:19]} 41. Nxa7 $2 {[%emt 0:00:04] [#]} (41. Ne7+ $19 Kf8 42. Rxa7) 41... Rc1+ {[%emt 0:00:04]} 42. Ke2 {[%emt 0:00:07]} Bc3 {[%emt 0:00:01] Weighted Error Value: White=0.41/Black=0.08 (flawless) .  Loses game:     	White=1     	---        Mistake:       	White=4     	---        Inaccurate:     	White=1     	Black=2      OK:         	White=14    	Black=17     Best:        	---       	Black=5      Strong:       	---       	Black=1} 0-1

[Event "Grand Prix Romania 1st Stage 2024"]
[Site "Bucuresti"]
[Date "2024.03.23"]
[Round "3.12"]
[White "Chigaev, Maksim"]
[Black "Daianu, Cristian-Clement"]
[Result "1-0"]
[ECO "B80"]
[WhiteElo "2617"]
[BlackElo "2201"]
[Annotator "TA"]
[PlyCount "63"]
[EventDate "2024.03.20"]
[EventType "swiss"]
[EventCountry "ROU"]
[SourceTitle "playchess.com"]
[Source "ChessBase"]
[SourceQuality "1"]
[TimeControl "900+5"]

{[%evp 12,63,12,3,20,0,24,15,52,38,52,47,50,42,50,47,53,32,64,52,83,44,74,67,63,66,43,45,50,58,82,73,79,94,143,135,117,40,164,162,177,98,103,90,242,113,341,327,462,290,425,425,887,875]} 1. e4 {[%emt 0:00:03]} c5 {[%emt 0:00:01]} 2. Nf3 {[%emt 0:00:08]} d6 {[%emt 0:00:02]} 3. Nc3 {[%emt 0:00:19]} a6 {[%emt 0:00:10]} 4. d4 {[%emt 0:00:09]} cxd4 {[%emt 0:00:02]} 5. Nxd4 {[%emt 0:00:02]} Nf6 {[%emt 0:00:02]} 6. Be3 {[%emt 0:00:13]} e6 {[%emt 0:00:07]} 7. a4 {[%emt 0:00:32]} Qc7 {[%emt 0:00:10]} 8. a5 {[%emt 0:00:34]} Be7 {[%emt 0:02:03]} 9. Be2 {[%emt 0:00:03]} Bd7 {[%emt 0:00:26] The position is equal.} 10. O-O {[%emt 0:00:11]} Nc6 {[%emt 0:00:16]} 11. Nb3 {[%emt 0:00:05]} O-O {[%emt 0:00:09]} 12. Bb6 {[%emt 0:00:10]} Qc8 {[%emt 0:00:32]} 13. f4 {[%emt 0:00:55]} Nb4 {[%emt 0:00:40]} 14. Bf3 {[%emt 0:00:03]} Bc6 {[%emt 0:00:09]} 15. Qe2 {[%emt 0:01:14]} e5 {[%emt 0:02:54]} 16. fxe5 {[%emt 0:00:42]} dxe5 {[%emt 0:00:03]} 17. Rad1 {[%emt 0:00:05]} Bd7 {[%emt 0:00:37]} 18. Rd2 {[%emt 0:00:51]} Re8 {[%emt 0:01:31]} 19. Qf2 {[%emt 0:01:07]} Be6 {[%emt 0:01:21]} 20. Nc5 {[%emt 0:02:25]} Bc4 {[%emt 0:00:07]} 21. Rfd1 {[%emt 0:00:03]} Nc6 {[%emt 0:00:11][%cal Oc6a5]} 22. Nd7 {[%emt 0:00:47] White is more active.} Nd4 {[%emt 0:02:38]} 23. Nxe5 $16 {[%emt 0:00:33]} Nxf3+ {[%emt 0:00:02]} 24. Nxf3 {[%emt 0:00:14]} (24. gxf3 $16 Be6 25. Kh1) 24... Ng4 {[%emt 0:00:50]} (24... Bb4 $1 $14) 25. Qg3 $18 {[%emt 0:00:01]} Bc5+ {[%emt 0:00:18] [#]} 26. Kh1 {[%emt 0:00:54]} (26. Nd4 $1 $18 {Bxc5 would now be deadly.} h5 27. h3) 26... Bxb6 $16 27. axb6 {[%emt 0:00:02]} Be6 {[%emt 0:01:37] Repels Rd7} (27... Ne3 $16) 28. Nd4 {[%emt 0:00:46]} (28. Ng5 $18 {is more deadly. And now Nxe6 would win.} Ne5 29. Qxe5) 28... Nf6 $2 {[%emt 0:00:08]} (28... Qb8 $16) 29. e5 $18 {[%emt 0:00:50]} Ng4 {[%emt 0:00:09]} (29... Nh5 $142 30. Qh4 g6 31. Nxe6 Qxe6) 30. h3 {[%emt 0:00:09] Black is weak on the dark squares} Nh6 {[%emt 0:00:01]} (30... Nxe5 $142 31. Ne4 (31. Qxe5 Bg4 $18) 31... Ng6) 31. Ne4 {[%emt 0:00:01] Excellent horsemanship.} Kh8 {[%emt 0:00:01]} (31... Re7 $142 32. c4 Kh8) 32. Nd6 {[%emt 0:00:02][%csl LRc8,LRe8] Weighted Error Value: White=0.27 (precise) /Black=0.51.  Loses game:     	---       	Black=1      Mistake:       	White=3     	Black=6      Inaccurate:     	White=2     	Black=4      OK:         	White=13    	Black=6      Best:        	White=2     	---} 1-0

[Event "Grand Prix Romania 1st Stage 2024"]
[Site "Bucuresti"]
[Date "2024.03.23"]
[Round "3.13"]
[White "Negrean, Andrei"]
[Black "Fridman, Daniel"]
[Result "0-1"]
[ECO "E11"]
[WhiteElo "2169"]
[BlackElo "2590"]
[Annotator "TA"]
[PlyCount "126"]
[EventDate "2024.03.20"]
[EventType "swiss"]
[EventCountry "ROU"]
[SourceTitle "playchess.com"]
[Source "ChessBase"]
[SourceQuality "1"]
[TimeControl "900+5"]

{[%evp 13,126,11,12,9,21,17,83,88,85,82,85,97,89,104,96,16,46,0,0,0,12,-7,-7,-26,-20,-10,0,0,24,26,25,12,18,5,4,6,5,0,0,0,0,0,0,0,0,0,0,0,0,0,8,8,8,0,-6,-10,-10,-10,-8,-19,0,0,0,-54,-60,-63,-8,-8,-8,-8,-8,-8,-8,-8,-8,-13,-10,-977,-947,-1030,-944,-682,-8,-118,-8,-8,-8,-1198,-1198,-1198,-1191,-814,-800,-1198,-1198,-1191,-1191,-1172,-979,-1194,-1194,-1159,-893,-4936,-4133,-29970,-29971,-29982,-29983,-29983,-29984,-29987,-29988,-29988,-29989]} 1. Nf3 {[%emt 0:00:02]} d5 {[%emt 0:00:01]} 2. d4 {[%emt 0:00:02]} Nf6 {[%emt 0:00:02]} 3. c4 {[%emt 0:00:02]} e6 {[%emt 0:00:02]} 4. g3 {[%emt 0:00:02]} Bb4+ {[%emt 0:00:05]} 5. Bd2 {[%emt 0:00:03]} a5 {[%emt 0:00:01]} 6. Bg2 {[%emt 0:00:42]} O-O {[%emt 0:00:03]} 7. O-O {[%emt 0:00:12]} dxc4 {[%emt 0:00:02] E11: Damenindisch (Bogoljubow-Variante).} 8. Qc2 {[%emt 0:01:12]} b5 {[%emt 0:00:02]} 9. a4 {[%emt 0:00:36]} c6 {[%emt 0:00:10]} (9... bxa4 $1 $11 {bleibt in der Remisbreite.} 10. Rxa4 (10. Qxc4 Ba6 $15) (10. Qxa4 Bb7 $15) 10... Nc6) 10. axb5 $16 {[%emt 0:00:41]} Bxd2 {[%emt 0:00:02]} 11. Nfxd2 {[%emt 0:01:06]} Nd5 {[%emt 0:00:29]} 12. Na3 {[%emt 0:02:50]} cxb5 {[%emt 0:00:03]} 13. Nxb5 {[%emt 0:00:03]} Ba6 {[%emt 0:00:08]} 14. Na3 $146 {[%emt 0:01:12]} (14. Qxc4 $2 {ist das falsche Schlagen.} Qb6 15. Bxd5 exd5 (15... Bxb5 $2 16. Qxb5 Qxb5 17. Bxa8 $17) 16. Qxd5 Qxb5 17. Qxb5 (17. Qxa8 $2 Nc6 $19) 17... Bxb5 $19) (14. Nc3 $16) ({Predecessor:} 14. Nc3 Nc6 15. e3 Rb8 16. Rfb1 Rb4 17. Na2 Bb5 18. Nxb4 Ncxb4 19. Qc1 Nd3 20. Qd1 {½-½ Chatterjee,D (2196)-Anata,C (2185) BAN-chT Dhaka 2022 (4.5)}) 14... Nc6 $1 $11 {[%emt 0:00:02]} 15. Ndxc4 {[%emt 0:01:29]} (15. Nf3 $14 {scheint genauer.}) 15... Nxd4 $11 {[%emt 0:00:04]} 16. Qd1 {[%emt 0:00:35]} Nc6 {[%emt 0:00:12]} 17. e4 {[%emt 0:01:08]} Ndb4 {[%emt 0:00:02]} 18. Qxd8 {[%emt 0:00:38]} Raxd8 {[%emt 0:00:14]} 19. Rfd1 {[%emt 0:00:18]} f6 {[%emt 0:00:43]} 20. Bf1 {[%emt 0:00:40]} f5 {[%emt 0:02:18]} 21. exf5 {[%emt 0:00:45]} exf5 {[%emt 0:00:02]} 22. f4 {[%emt 0:00:49]} g6 {[%emt 0:00:04]} 23. Nd6 {[%emt 0:00:53]} Bxf1 {[%emt 0:00:07]} 24. Kxf1 {[%emt 0:00:01]} Rd7 {[%emt 0:01:02]} 25. Ndc4 {[%emt 0:00:41]} Rfd8 {[%emt 0:00:07]} 26. Rxd7 {[%emt 0:00:07]} Rxd7 {[%emt 0:00:02]} 27. Re1 {[%emt 0:00:17]} Kg7 {[%emt 0:01:05]} 28. Re2 {[%emt 0:00:08]} Rd4 {[%emt 0:00:47]} 29. Rd2 {[%emt 0:00:06]} Rxd2 {[%emt 0:00:13]} 30. Nxd2 {[%emt 0:00:01]} Kf6 {[%emt 0:00:04]} 31. Nac4 {[%emt 0:00:09]} Nd3 {[%emt 0:00:24]} 32. Ke2 {[%emt 0:00:05]} Nc5 {[%emt 0:00:01]} 33. Ne3 {[%emt 0:00:07]} Nd4+ {[%emt 0:00:07]} 34. Kd1 {[%emt 0:00:07]} Ke6 {[%emt 0:00:08]} 35. Kc1 {[%emt 0:00:05]} a4 {[%emt 0:00:08]} 36. Kb1 {[%emt 0:00:01]} Kd6 {[%emt 0:00:25]} 37. Ka2 {[%emt 0:00:04]} Kc6 {[%emt 0:00:01]} 38. Ndc4 {[%emt 0:00:05]} (38. Ka3 $11) 38... Nf3 $15 {[%emt 0:00:27]} 39. h3 {[%emt 0:00:03]} h5 {[%emt 0:01:11]} (39... Ng1 $15 40. Ne5+ Kb5) 40. Ka3 $11 {[%emt 0:00:07]} h4 {[%emt 0:00:16]} 41. gxh4 {[%emt 0:00:06]} Nxh4 {[%emt 0:00:04]} 42. Ne5+ {[%emt 0:00:03]} Kb5 {[%emt 0:00:02]} 43. Nc2 {[%emt 0:00:10]} Ne6 {[%emt 0:00:03]} 44. Nd3 {[%emt 0:00:04]} Ng2 {[%emt 0:00:02]} 45. Nce1 $2 {[%emt 0:00:06][%mdl 8192]} (45. Ne5 $11) 45... Nxe1 $19 ({Weniger gut wäre} 45... Ngxf4 46. Ne5 $17) ({Nicht} 45... Nexf4 46. b3 $17) 46. Nxe1 {[%emt 0:00:01]} Nxf4 {[%emt 0:00:06]} 47. h4 {[%emt 0:00:02]} Nd5 $2 {[%emt 0:00:54]} ({Vorzuziehen ist} 47... Kc4 $19 {Droht stark ...Nd3.} 48. Kxa4 Nd3) 48. Nf3 {[%emt 0:00:04] [#]} (48. Nd3 $1 $11) 48... f4 {[%emt 0:00:39]} ({Günstiger ist} 48... Ne7 $1 $17 {[%cal Re7c6] ...Nc6 wäre nun fies.} 49. b3 axb3 50. Kxb3 Kc5) 49. b3 $11 {[%emt 0:00:11]} axb3 50. Kxb3 $2 {[%emt 0:00:01][%mdl 8192] [#]} (50. Ne5 $11) 50... Kc5 $1 $19 {[%emt 0:00:03]} 51. Kc2 {[%emt 0:00:06]} Ne7 {[%emt 0:00:15]} 52. Kd3 {[%emt 0:00:06]} Kd5 {[%emt 0:00:01]} 53. Ng5 {[%emt 0:00:08]} Ke5 {[%emt 0:00:05]} 54. Ke2 {[%emt 0:00:04]} Kf5 {[%emt 0:00:02]} 55. Kf3 {[%emt 0:00:06]} Nc6 {[%emt 0:00:02]} 56. Kg2 {[%emt 0:00:07]} Ne5 {[%emt 0:01:42]} 57. Kh3 {[%emt 0:00:03]} Nd3 {[%emt 0:00:02]} 58. Nf3 {[%emt 0:00:06]} Ke4 {[%emt 0:00:03]} 59. Nd2+ {[%emt 0:00:04]} Ke3 {[%emt 0:00:16]} 60. Nc4+ {[%emt 0:00:04]} Ke2 {[%emt 0:00:02]} 61. Nd6 {[%emt 0:00:07]} f3 {[%emt 0:00:02]} 62. Ne4 {[%emt 0:00:02]} Nf2+ {[%emt 0:00:02]} 63. Nxf2 {[%emt 0:00:08]} Kxf2 {[%emt 0:00:01]} 0-1